bitfinex-derivatives/quotes_BTCF0:USTF0_20250630
["timestamp","ask_amount","ask_price","bid_price","bid_amount"]
[1751320469261,0.48935526,107080.0,107070.0,1.34482351]
[1751320469661,0.31751329,107080.0,107070.0,0.8558472]
[1751320469866,0.31751329,107080.0,107070.0,1.54565874]
[1751320470067,0.61149981,107080.0,107070.0,1.2158472]
[1751320470566,0.61249981,107080.0,107070.0,1.2158472]
[1751320470962,0.61149981,107080.0,107070.0,1.2158472]
[1751320471170,0.8514076,107080.0,107070.0,1.2158472]
[1751320471659,0.8504076,107080.0,107070.0,1.73244274]
[1751320471963,0.36969128,107080.0,107070.0,2.09324274]
[1751320472171,0.36969128,107080.0,107070.0,2.1078397]
[1751320472365,0.13078349,107080.0,107070.0,2.1078397]
[1751320472761,0.13078349,107080.0,107070.0,2.3578397]
[1751320472961,0.37084249,107080.0,107070.0,2.3578397]
[1751320473162,0.37134555,107080.0,107070.0,2.3578397]
[1751320473968,0.37134555,107080.0,107070.0,2.1710925]
[1751320474170,0.31598508,107080.0,107070.0,2.1078397]
[1751320474371,0.31598508,107080.0,107070.0,2.3578397]
[1751320474573,0.30998508,107080.0,107070.0,2.3659854]
[1751320474768,0.31298508,107080.0,107070.0,2.3669854]
[1751320474974,0.16554625,107080.0,107070.0,2.3669854]
[1751320475174,0.16554625,107080.0,107070.0,2.3659854]
[1751320475175,0.291841,107080.0,107070.0,2.3659854]
[1751320475363,0.292841,107080.0,107070.0,2.3669854]
[1751320475568,0.292841,107080.0,107070.0,2.69679694]
[1751320476069,0.292841,107080.0,107070.0,2.03717386]
[1751320476270,0.292841,107080.0,107070.0,2.3669854]
[1751320477065,0.16354625,107080.0,107070.0,2.3669854]
[1751320477268,0.16354625,107080.0,107070.0,2.28291538]
[1751320478070,0.25584717,107080.0,107070.0,2.61272692]
[1751320478966,0.25584717,107080.0,107070.0,1.95310384]
[1751320479375,0.25584717,107080.0,107070.0,2.28291538]
[1751320479376,0.16354625,107080.0,107070.0,2.28291538]
[1751320480876,0.1203494,107080.0,107070.0,2.28291538]
[1751320481076,0.001,107090.0,107080.0,0.1867298]
[1751320481378,0.001,107090.0,107080.0,2.07797784]
[1751320481878,0.09330092,107090.0,107080.0,2.02193706]
[1751320482178,0.001,107090.0,107080.0,2.02193706]
[1751320483873,0.003,107090.0,107080.0,2.02293706]
[1751320484269,0.12778349,107090.0,107080.0,2.02293706]
[1751320485079,0.12778349,107090.0,107080.0,2.62813706]
[1751320485281,0.18312666,107090.0,107080.0,2.62813706]
[1751320486572,0.18312666,107090.0,107080.0,2.87813706]
[1751320486773,0.08137196,107090.0,107080.0,2.90923706]
[1751320486982,6e-08,107090.0,107080.0,2.90923706]
[1751320487179,6e-08,107090.0,107080.0,2.8946401]
[1751320487484,0.15850092,107120.0,107110.0,0.1866775]
[1751320487780,0.16787826,107120.0,107110.0,1.48156904]
[1751320488281,0.03257734,107120.0,107110.0,1.84236904]
[1751320488783,0.06557734,107120.0,107110.0,1.84236904]
[1751320488979,0.07357734,107120.0,107110.0,1.23828904]
[1751320489378,0.07357734,107120.0,107110.0,1.84320904]
[1751320490079,0.19836083,107120.0,107110.0,1.84320904]
[1751320490881,0.19336083,107120.0,107110.0,1.84320904]
[1751320491585,0.19336083,107120.0,107110.0,1.93581939]
[1751320492983,0.22135575,107120.0,107110.0,1.60600785]
[1751320493184,0.18835575,107120.0,107110.0,1.93581939]
[1751320493482,0.15615575,107120.0,107110.0,1.99901939]
[1751320494685,0.21935575,107120.0,107110.0,1.99901939]
[1751320495486,0.15615575,107120.0,107110.0,1.99901939]
[1751320495880,0.15615575,107120.0,107110.0,1.93278844]
[1751320496080,0.21945575,107120.0,107110.0,1.93278844]
[1751320497287,0.19146083,107120.0,107110.0,2.04029625]
[1751320497486,3e-08,107120.0,107110.0,2.49059777]
[1751320497785,0.0643,107150.0,107140.0,0.1866252]
[1751320497983,0.4143,107150.0,107140.0,1.88370322]
[1751320498183,0.4143,107150.0,107140.0,1.88370295]
[1751320499285,0.4143,107150.0,107140.0,1.93626235]
[1751320499486,0.0943,107150.0,107140.0,1.93626235]
[1751320499681,0.0953,107150.0,107140.0,1.60547371]
[1751320499887,0.0953,107150.0,107140.0,1.93479522]
[1751320500189,0.0983,107150.0,107140.0,1.9413657]
[1751320500683,0.22308349,107150.0,107140.0,1.9413657]
[1751320501889,0.19048349,107150.0,107140.0,1.9413657]
[1751320502089,0.19048349,107150.0,107140.0,1.9727657]
[1751320502287,0.22298349,107150.0,107140.0,1.96921491]
[1751320503290,0.22398349,107150.0,107140.0,1.61204419]
[1751320503489,0.22298349,107150.0,107140.0,1.95295964]
[1751320503690,0.19298349,107150.0,107140.0,2.00865375]
[1751320504690,0.19298349,107150.0,107140.0,2.07155375]
[1751320504892,0.19298349,107150.0,107140.0,2.01585964]
[1751320505089,0.19298349,107150.0,107140.0,2.07155375]
[1751320505387,0.19298349,107150.0,107140.0,2.03443045]
[1751320505892,0.16048349,107150.0,107140.0,2.03443045]
[1751320507391,0.12878349,107150.0,107140.0,2.03443045]
[1751320507699,0.12878349,107150.0,107140.0,2.05299551]
[1751320507888,0.12878349,107150.0,107140.0,1.97873634]
[1751320508891,0.12878349,107150.0,107140.0,2.05299551]
[1751320509587,0.12578349,107150.0,107140.0,2.23865951]
[1751320509784,0.05490959,107150.0,107140.0,2.24065951]
[1751320509989,0.05490959,107150.0,107140.0,2.27195951]
[1751320512790,9e-08,107150.0,107140.0,2.26430359]
[1751320512990,9e-08,107150.0,107140.0,2.51438359]
[1751320513389,0.0627,107170.0,107160.0,0.1865903]
[1751320513693,0.0627,107170.0,107160.0,1.94605783]
[1751320513887,0.3618,107180.0,107170.0,0.1865729]
[1751320514089,0.9400555,107180.0,107170.0,0.57696989]
[1751320514286,0.9410555,107180.0,107170.0,0.57696989]
[1751320514485,0.9400555,107180.0,107170.0,1.17884989]
[1751320514686,0.9410555,107180.0,107170.0,1.25474248]
[1751320514890,0.7545,107180.0,107170.0,1.25474248]
[1751320515203,0.7575,107180.0,107170.0,0.92642097]
[1751320515497,0.7565,107180.0,107170.0,1.29285275]
[1751320515694,0.7575,107180.0,107170.0,1.30839695]
[1751320515894,0.88128349,107180.0,107170.0,1.30839695]
[1751320516095,0.88228349,107180.0,107170.0,1.28056452]
[1751320516891,0.88128349,107180.0,107170.0,1.28056452]
[1751320517098,0.88228349,107180.0,107170.0,1.59056452]
[1751320517292,0.45978349,107180.0,107170.0,1.97920597]
[1751320517490,0.12878349,107180.0,107170.0,2.07232852]
[1751320518099,0.12878349,107180.0,107170.0,2.03521825]
[1751320518798,0.12878349,107180.0,107170.0,2.01967405]
[1751320521790,0.12878349,107180.0,107170.0,1.95360252]
[1751320522297,0.07312039,107180.0,107170.0,1.95360252]
[1751320522489,0.07312039,107180.0,107170.0,1.98540252]
[1751320522797,0.07312039,107180.0,107170.0,1.92973852]
[1751320522995,0.07312039,107180.0,107170.0,1.94067405]
[1751320523795,0.07312039,107180.0,107170.0,1.92973852]
[1751320523995,0.07312039,107180.0,107170.0,1.94067442]
[1751320524198,0.07312039,107180.0,107170.0,1.94067414]
[1751320524992,0.07312039,107180.0,107170.0,1.92973852]
[1751320525199,0.07312039,107180.0,107170.0,2.00399769]
[1751320525400,0.07312039,107180.0,107170.0,1.94067417]
[1751320525603,0.07312039,107180.0,107170.0,2.00399769]
[1751320525604,9e-08,107180.0,107170.0,2.00399769]
[1751320525908,0.0952,107210.0,107200.0,0.1865207]
[1751320526099,0.4652,107210.0,107200.0,2.24866923]
[1751320526397,0.4652,107210.0,107200.0,2.22082259]
[1751320526602,0.4652,107210.0,107200.0,2.2263189]
[1751320527195,0.2752,107210.0,107200.0,2.25416719]
[1751320527502,0.2752,107210.0,107200.0,2.22382259]
[1751320527897,0.2752,107210.0,107200.0,2.24238702]
[1751320528603,0.2752,107210.0,107200.0,2.27528702]
[1751320528805,0.36688349,107210.0,107200.0,2.27528702]
[1751320529005,0.30578349,107210.0,107200.0,2.30658702]
[1751320529602,0.12578349,107210.0,107200.0,2.30658702]
[1751320530804,0.12578349,107210.0,107200.0,2.3251529]
[1751320531004,0.12578349,107210.0,107200.0,2.3307867]
[1751320531205,0.12578349,107210.0,107200.0,2.25652753]
[1751320531810,0.12578349,107210.0,107200.0,2.5173467]
[1751320532103,0.08560509,107210.0,107200.0,2.47498753]
[1751320532309,9e-08,107210.0,107200.0,2.54918655]
[1751320532601,9e-08,107210.0,107200.0,2.83106847]
[1751320532805,9e-08,107210.0,107200.0,2.81240869]
[1751320533205,9e-08,107210.0,107200.0,2.83106847]
[1751320534102,0.0619,107240.0,107230.0,0.44971848]
[1751320534304,0.43139694,107240.0,107230.0,2.2490833]
[1751320535210,0.40099694,107240.0,107230.0,2.2120115]
[1751320535400,0.40099694,107240.0,107230.0,2.2750115]
[1751320536306,0.00449694,107240.0,107230.0,2.2750115]
[1751320536508,0.00449694,107240.0,107230.0,2.28427945]
[1751320537200,0.12528043,107240.0,107230.0,2.33988716]
[1751320537398,0.12728043,107240.0,107230.0,2.33988716]
[1751320538406,0.12728043,107240.0,107230.0,2.41616803]
[1751320539305,0.12728043,107240.0,107230.0,2.36056032]
[1751320539805,0.12728043,107240.0,107230.0,2.37909623]
[1751320540198,0.12728043,107240.0,107230.0,2.40929623]
[1751320543814,0.12728043,107240.0,107230.0,1.81065623]
[1751320544018,0.12728043,107240.0,107230.0,2.65749623]
[1751320544315,0.12728043,107240.0,107230.0,1.81065623]
[1751320544514,0.12728043,107240.0,107230.0,2.65697623]
[1751320545121,0.12728043,107240.0,107230.0,2.67551213]
[1751320545524,0.12728043,107240.0,107230.0,2.60136852]
[1751320545931,0.12528043,107240.0,107230.0,2.60136852]
[1751320546127,0.12528043,107240.0,107230.0,2.67551213]
[1751320547125,0.12528043,107240.0,107230.0,1.82919213]
[1751320547430,0.12528043,107240.0,107230.0,2.67511213]
[1751320550426,0.12528043,107240.0,107230.0,2.69051685]
[1751320551533,0.12528043,107240.0,107230.0,2.68915685]
[1751320551728,0.12528043,107240.0,107230.0,2.29562076]
[1751320551935,0.18948043,107240.0,107230.0,2.55887074]
[1751320553328,0.18948043,107240.0,107230.0,2.55935074]
[1751320553731,0.18948043,107240.0,107230.0,2.55921676]
[1751320554529,0.18948043,107240.0,107230.0,2.52275926]
[1751320555040,0.18948043,107240.0,107230.0,2.57834552]
[1751320555229,0.18948043,107240.0,107230.0,2.55986639]
[1751320555429,0.18948043,107240.0,107230.0,2.57834552]
[1751320556329,0.18948043,107240.0,107230.0,1.73270552]
[1751320556535,0.18948043,107240.0,107230.0,2.57814552]
[1751320556838,0.18948043,107240.0,107230.0,2.57774552]
[1751320557530,0.18948043,107240.0,107230.0,2.59630287]
[1751320557732,0.18948043,107240.0,107230.0,2.59626287]
[1751320561333,0.18948043,107240.0,107230.0,2.33301289]
[1751320561641,0.18948043,107240.0,107230.0,2.66006287]
[1751320562136,0.18948043,107240.0,107230.0,2.66206287]
[1751320564638,0.18948043,107240.0,107230.0,1.80429289]
[1751320564841,0.18948043,107240.0,107230.0,2.67939022]
[1751320565339,0.18948043,107240.0,107230.0,2.75392305]
[1751320565541,0.18948043,107240.0,107230.0,2.58655926]
[1751320567529,0.18948043,107240.0,107230.0,2.66111405]
[1751320567736,0.15718043,107240.0,107230.0,2.66111405]
[1751320568443,0.12528043,107240.0,107230.0,2.66111405]
[1751320569442,0.12528043,107240.0,107230.0,2.39786407]
[1751320569642,0.12528043,107240.0,107230.0,2.66111405]
[1751320570039,0.12528043,107240.0,107230.0,2.39786407]
[1751320570239,0.12528043,107240.0,107230.0,2.66111405]
[1751320575444,0.12528043,107240.0,107230.0,2.69221405]
[1751320580246,0.0466286,107210.0,107180.0,0.33484788]
[1751320580543,0.1876992,107100.0,107080.0,0.00093384]
[1751320580743,0.1876992,107100.0,107050.0,0.0009341]
[1751320580744,0.1867471,107070.0,107060.0,0.0634]
[1751320580944,0.5475646,107060.0,107050.0,0.13003298]
[1751320581243,1.26500198,107060.0,107050.0,0.31]
[1751320581442,1.26500198,107060.0,107040.0,0.26357108]
[1751320581443,1.21831818,107060.0,107040.0,0.26357108]
[1751320581637,0.79283198,107050.0,107040.0,0.58357108]
[1751320581835,0.85963314,107050.0,107040.0,0.62093707]
[1751320582147,0.76632864,107050.0,107040.0,0.62093707]
[1751320582648,0.6230595,107050.0,107040.0,0.58357108]
[1751320582837,0.4362775,107050.0,107040.0,0.58357108]
[1751320583244,0.6230595,107050.0,107040.0,0.58357108]
[1751320583449,0.4362775,107050.0,107040.0,0.62093908]
[1751320583847,0.4352775,107050.0,107040.0,0.62093908]
[1751320584048,0.4352775,107050.0,107040.0,0.66528508]
[1751320584250,0.6210981,107050.0,107040.0,0.66540508]
[1751320584450,0.6270981,107050.0,107040.0,0.66640508]
[1751320585253,0.6972454,107050.0,107040.0,0.65225908]
[1751320585446,0.77188506,107050.0,107040.0,0.65225908]
[1751320585751,0.82639674,107050.0,107040.0,0.65225908]
[1751320586555,0.77188506,107050.0,107040.0,0.68225908]
[1751320586949,0.77188506,107050.0,107040.0,0.69684495]
[1751320587148,0.75175708,107050.0,107040.0,0.69684495]
[1751320587451,0.5104634,107050.0,107040.0,1.04748957]
[1751320587655,0.5104634,107050.0,107040.0,1.295648]
[1751320589254,0.63703022,107050.0,107040.0,1.295648]
[1751320590150,0.63703022,107050.0,107040.0,1.294768]
[1751320590354,0.82381222,107050.0,107040.0,1.294768]
[1751320590556,0.82381222,107050.0,107040.0,0.448568]
[1751320590756,0.82381222,107050.0,107040.0,1.294568]
[1751320591461,0.82381222,107050.0,107040.0,1.2572]
[1751320591759,0.78751331,107050.0,107040.0,1.294568]
[1751320593060,0.82041331,107050.0,107040.0,1.294568]
[1751320593649,0.60073131,107050.0,107040.0,1.58725114]
[1751320593851,0.5104634,107050.0,107040.0,1.96031117]
[1751320594060,0.5104634,107050.0,107040.0,1.63026003]
[1751320594658,0.5825946,107050.0,107040.0,1.63026003]
[1751320594961,0.5204634,107050.0,107040.0,1.63026003]
[1751320595162,0.5925947,107050.0,107040.0,1.63026003]
[1751320595561,0.5204634,107050.0,107040.0,1.63026003]
[1751320595761,0.7072454,107050.0,107040.0,1.63026003]
[1751320597458,0.79751331,107050.0,107040.0,1.57419363]
[1751320599965,0.61073131,107050.0,107040.0,1.57419363]
[1751320600164,0.60073131,107050.0,107040.0,1.57419363]
[1751320600364,0.78751321,107050.0,107040.0,1.57419363]
[1751320600565,0.8094663,107050.0,107040.0,1.60529363]
[1751320600763,0.8094663,107050.0,107040.0,1.25529363]
[1751320601068,0.5826844,107050.0,107040.0,0.40929363]
[1751320601364,0.69774836,107050.0,107040.0,0.40929363]
[1751320601566,0.51096646,107050.0,107040.0,0.40929363]
[1751320601965,0.58323754,107050.0,107040.0,0.40929363]
[1751320602266,0.51096646,107050.0,107040.0,2.06377363]
[1751320602663,0.69774846,107050.0,107040.0,1.6907136]
[1751320602859,0.69774846,107050.0,107040.0,2.06377363]
[1751320603060,0.51096646,107050.0,107040.0,2.06377363]
[1751320603267,0.51096646,107050.0,107040.0,2.43377363]
[1751320604564,1.60857482,107050.0,107040.0,0.37418735]
[1751320604871,1.67377482,107050.0,107040.0,0.37418735]
[1751320605071,1.71372368,107050.0,107040.0,0.37418735]
[1751320605869,2.04377482,107050.0,107040.0,0.37418735]
[1751320606070,1.71372368,107050.0,107040.0,0.37418735]
[1751320606271,1.71372368,107050.0,107040.0,0.83105375]
[1751320606572,1.58715686,107050.0,107040.0,0.83105375]
[1751320606771,1.71442761,107050.0,107040.0,0.83105375]
[1751320607376,1.71442761,107050.0,107040.0,0.86405375]
[1751320607574,1.58715686,107050.0,107040.0,0.86405375]
[1751320607874,1.85116787,107050.0,107040.0,0.86405375]
[1751320609374,1.85116787,107050.0,107040.0,0.68241211]
[1751320609767,2.0548664,107050.0,107040.0,0.68241211]
[1751320610274,2.0548664,107050.0,107040.0,0.69701352]
[1751320610476,1.87016787,107050.0,107040.0,0.69701352]
[1751320610772,2.00814614,107050.0,107040.0,0.31204282]
[1751320612472,2.00814614,107050.0,107040.0,0.25597287]
[1751320613175,1.82346877,107050.0,107040.0,0.25597287]
[1751320613377,1.55945776,107050.0,107040.0,0.25597287]
[1751320613574,1.82346877,107050.0,107040.0,0.25597287]
[1751320614580,1.82346877,107050.0,107040.0,0.17186794]
[1751320615671,1.95304952,107050.0,107040.0,0.17186794]
[1751320616677,1.95304952,107050.0,107040.0,0.05972803]
[1751320616877,1.68903851,107050.0,107040.0,0.05972803]
[1751320617073,1.95304952,107050.0,107040.0,0.05972803]
[1751320617271,1.82346877,107050.0,107040.0,0.05972803]
[1751320618673,1.78609192,107050.0,107040.0,0.05972803]
[1751320619880,1.78609192,107050.0,107040.0,0.08773744]
[1751320620781,1.78609192,107050.0,107040.0,0.12508346]
[1751320621184,1.52208091,107050.0,107040.0,0.12508346]
[1751320621373,1.78609192,107050.0,107040.0,0.12508346]
[1751320621876,1.78609192,107050.0,107040.0,0.02800941]
[1751320622275,0.1877994,107040.0,107030.0,0.02800941]
[1751320622480,1.18451347,107040.0,107030.0,0.31523543]
[1751320622778,1.18451347,107040.0,107030.0,0.27788941]
[1751320622974,1.44852448,107040.0,107030.0,0.27788941]
[1751320623174,0.1868168,107030.0,107020.0,0.06628979]
[1751320623375,1.18302781,107030.0,107020.0,0.6518838]
[1751320623575,1.18353087,107030.0,107020.0,0.6518838]
[1751320623988,1.18353087,107030.0,107020.0,0.62387439]
[1751320625076,1.18553087,107030.0,107020.0,0.62387439]
[1751320625389,1.67111436,107030.0,107020.0,0.62387439]
[1751320625578,1.67111436,107030.0,107020.0,0.37399439]
[1751320625879,1.67111436,107030.0,107020.0,0.62199439]
[1751320629885,1.40710335,107030.0,107020.0,0.62199439]
[1751320630187,1.67111436,107030.0,107020.0,0.62199439]
[1751320632685,1.67111436,107030.0,107020.0,0.24893436]
[1751320632987,1.67111436,107030.0,107020.0,0.28630836]
[1751320634178,2.26263436,107030.0,107020.0,0.28630836]
[1751320634581,2.26313742,107030.0,107020.0,0.28630836]
[1751320635085,2.26313742,107030.0,107020.0,0.28634836]
[1751320635481,1.99912641,107030.0,107020.0,0.28634836]
[1751320635689,2.26313742,107030.0,107020.0,0.62203439]
[1751320637286,2.26313742,107030.0,107020.0,0.63655813]
[1751320637884,2.26313742,107030.0,107020.0,0.66835813]
[1751320638383,2.26313742,107030.0,107020.0,0.00093436]
[1751320638584,0.5476517,107010.0,107000.0,0.034]
[1751320638789,0.5476692,107000.0,106990.0,0.00620276]
[1751320638993,1.86546852,107000.0,106990.0,0.02057144]
[1751320639193,1.46147652,107000.0,106990.0,0.02057144]
[1751320639378,2.05247652,107000.0,106990.0,0.02057144]
[1751320639581,0.94549631,107000.0,106990.0,0.02057144]
[1751320639781,0.36130306,107000.0,106990.0,1.68170187]
[1751320639981,0.36130306,107000.0,106990.0,1.44542313]
[1751320640179,0.43618655,107000.0,106990.0,1.44542313]
[1751320640391,0.43618655,107000.0,106990.0,1.25853653]
[1751320640591,0.43618655,107000.0,106990.0,1.24444499]
[1751320640789,0.43618655,107000.0,106990.0,1.43133159]
[1751320641092,0.43818655,107000.0,106990.0,1.44537923]
[1751320641387,0.43818655,107000.0,106990.0,1.43133159]
[1751320641584,0.43818655,107000.0,106990.0,1.44534303]
[1751320641989,0.43818655,107000.0,106990.0,1.77534303]
[1751320642490,0.43818655,107000.0,106990.0,2.03935404]
[1751320642886,0.62505575,107000.0,106990.0,1.44534303]
[1751320643093,0.62505575,107000.0,106990.0,1.70935404]
[1751320643290,0.43818655,107000.0,106990.0,1.74670006]
[1751320643492,0.43818655,107000.0,106990.0,1.70935404]
[1751320643889,0.43818655,107000.0,106990.0,1.44534303]
[1751320644088,0.62505575,107000.0,106990.0,0.66957024]
[1751320644290,0.62505575,107000.0,106990.0,1.44534303]
[1751320645198,0.62505575,107000.0,106990.0,1.48268905]
[1751320645393,0.43818655,107000.0,106990.0,1.48268905]
[1751320645699,0.43818655,107000.0,106990.0,1.45993657]
[1751320646298,0.43818655,107000.0,106990.0,1.69593817]
[1751320647598,0.43818655,107000.0,106990.0,1.72394758]
[1751320649200,0.43818655,107000.0,106990.0,1.7612936]
[1751320649899,0.43818655,107000.0,106990.0,2.0812936]
[1751320650100,0.62505575,107000.0,106990.0,2.0812936]
[1751320650701,0.43818655,107000.0,106990.0,2.0812936]
[1751320651300,0.43818655,107000.0,106990.0,2.05328419]
[1751320652003,0.43818655,107000.0,106990.0,1.73328419]
[1751320652504,0.43818655,107000.0,106990.0,2.10328419]
[1751320652802,0.43818655,107000.0,106990.0,1.73328419]
[1751320653006,0.43818655,107000.0,106990.0,1.78930375]
[1751320655700,0.43818655,107000.0,106990.0,1.75195773]
[1751320657201,0.62505575,107000.0,106990.0,1.48794672]
[1751320657406,0.43818655,107000.0,106990.0,1.75195773]
[1751320658910,0.0222794,107010.0,107000.0,0.55992923]
[1751320659106,0.0222794,107010.0,107000.0,1.9285319]
[1751320659313,0.0222794,107010.0,107000.0,1.94724653]
[1751320660310,0.00050306,107030.0,107020.0,0.1868343]
[1751320660505,0.00013015,107030.0,107020.0,1.75214219]
[1751320660706,0.00013015,107030.0,107020.0,1.81704219]
[1751320661304,0.00013015,107030.0,107020.0,1.83164647]
[1751320661510,0.00013015,107030.0,107020.0,2.17164647]
[1751320661708,0.00613015,107030.0,107020.0,2.17164647]
[1751320662111,0.13091364,107030.0,107020.0,2.17164647]
[1751320662513,0.13091364,107030.0,107020.0,2.24545101]
[1751320662905,0.13091364,107030.0,107020.0,1.98144]
[1751320663206,0.13091364,107030.0,107020.0,2.17164647]
[1751320663912,0.13091364,107030.0,107020.0,2.13433573]
[1751320664113,0.13091364,107030.0,107020.0,2.32120772]
[1751320664412,0.13091364,107030.0,107020.0,2.57120772]
[1751320664808,0.13091364,107030.0,107020.0,2.51524161]
[1751320665015,4e-08,107030.0,107020.0,2.58993436]
[1751320665310,0.001,107060.0,107050.0,0.1867819]
[1751320665502,0.311,107060.0,107050.0,1.62511291]
[1751320665710,0.311,107060.0,107050.0,2.0642729]
[1751320666110,0.051,107060.0,107050.0,2.0642729]
[1751320666713,0.001,107060.0,107050.0,2.0642729]
[1751320666913,0.001,107060.0,107050.0,2.1068043]
[1751320667106,0.001,107060.0,107050.0,2.14404793]
[1751320667307,0.0629,107080.0,107070.0,0.186747]
[1751320667514,0.4129,107080.0,107070.0,1.14764699]
[1751320668013,0.4129,107080.0,107070.0,1.15102432]
[1751320668413,0.5996295,107080.0,107070.0,1.14764699]
[1751320668607,0.4239,107080.0,107070.0,1.14964699]
[1751320668808,0.4239,107080.0,107070.0,1.21314699]
[1751320669002,0.361,107080.0,107070.0,1.58314699]
[1751320669308,0.362,107080.0,107070.0,1.477158]
[1751320669609,0.362,107080.0,107070.0,1.837158]
[1751320669806,0.361,107080.0,107070.0,1.837158]
[1751320670612,0.359,107080.0,107070.0,1.837158]
[1751320673115,0.359,107080.0,107070.0,1.84056607]
[1751320675104,0.009,107080.0,107070.0,1.84056607]
[1751320675309,0.149,107080.0,107070.0,1.84056607]
[1751320675814,0.149,107080.0,107070.0,2.10457708]
[1751320676009,0.009,107080.0,107070.0,2.10457708]
[1751320676209,0.009,107080.0,107070.0,2.34993708]
[1751320676810,0.009,107080.0,107070.0,2.53672108]
[1751320677315,0.001,107090.0,107080.0,0.1867296]
[1751320677520,0.001,107090.0,107080.0,2.0559806]
[1751320678412,0.008,107090.0,107080.0,2.0569806]
[1751320678616,0.008,107090.0,107080.0,2.2437486]
[1751320680624,0.008,107090.0,107080.0,2.31984397]
[1751320681919,1e-07,107090.0,107080.0,2.6117877]
[1751320682124,1e-07,107090.0,107080.0,2.64903133]
[1751320683119,0.001,107120.0,107110.0,0.1866773]
[1751320683317,0.00037734,107120.0,107110.0,1.9656683]
[1751320683511,0.00037734,107120.0,107110.0,2.0297683]
[1751320684125,0.00037734,107120.0,107110.0,2.0307683]
[1751320684126,0.00837734,107120.0,107110.0,2.0307683]
[1751320693845,0.00837734,107120.0,107110.0,2.3273683]
[1751320694245,0.00837734,107120.0,107110.0,2.35530102]
[1751320696149,0.00837734,107120.0,107110.0,2.39254465]
[1751320697446,0.00337734,107120.0,107110.0,2.39254465]
[1751320698149,0.00337734,107120.0,107110.0,2.36461193]
[1751320698448,0.00337734,107120.0,107110.0,2.39243973]
[1751320699242,0.00337734,107120.0,107110.0,2.36461193]
[1751320700549,0.00337734,107120.0,107110.0,2.42047737]
[1751320703245,0.00337734,107120.0,107110.0,2.38323374]
[1751320706251,0.00337734,107120.0,107110.0,2.3273683]
[1751320707349,0.00337734,107120.0,107110.0,2.40206105]
[1751320709759,0.00337734,107120.0,107110.0,2.3273683]
[1751320712159,0.00337734,107120.0,107110.0,2.40206105]
[1751320718060,0.00337734,107120.0,107110.0,3.20882105]
[1751320718961,4e-08,107120.0,107110.0,3.1341283]
[1751320720166,4e-08,107120.0,107110.0,3.20882105]
[1751320724370,4e-08,107120.0,107110.0,3.1341283]
[1751320724562,4e-08,107120.0,107110.0,3.22749424]
[1751320725970,4e-08,107120.0,107110.0,3.49047375]
[1751320727266,4e-08,107120.0,107110.0,3.75396901]
[1751320727569,0.0338,107150.0,107140.0,0.186625]
[1751320727570,0.0328,107150.0,107140.0,0.186625]
[1751320727772,0.0328,107150.0,107140.0,1.89988396]
[1751320728068,0.0328,107150.0,107140.0,1.91853819]
[1751320728272,0.0328,107150.0,107140.0,1.99196613]
[1751320729172,0.0328,107150.0,107140.0,2.02925451]
[1751320729870,0.0388,107150.0,107140.0,1.76671733]
[1751320730972,0.0843,107150.0,107140.0,1.76671733]
[1751320731974,0.0843,107150.0,107140.0,1.77126474]
[1751320732175,0.0843,107150.0,107140.0,2.57793919]
[1751320732975,0.0843,107150.0,107140.0,2.54066853]
[1751320733376,0.0843,107150.0,107140.0,2.58286853]
[1751320733576,0.0823,107150.0,107140.0,2.58186853]
[1751320734078,0.001,107150.0,107140.0,2.58186853]
[1751320734270,1e-07,107150.0,107140.0,3.18752187]
[1751320734464,1e-07,107150.0,107140.0,3.50461919]
[1751320734965,1e-07,107150.0,107140.0,3.31578881]
[1751320735172,1e-07,107150.0,107140.0,3.62304215]
[1751320735674,7.99996,107170.0,107160.0,0.55965019]
[1751320735879,7.99996,107170.0,107160.0,2.09385063]
[1751320736072,7.99996,107170.0,107160.0,2.22695063]
[1751320736567,7.6581856,107170.0,107160.0,2.41358263]
[1751320736875,6.37934542,107170.0,107160.0,2.88979847]
[1751320737074,6.16545072,107170.0,107160.0,2.98979847]
[1751320737274,5.76676542,107170.0,107160.0,3.02699215]
[1751320737478,5.43146862,107170.0,107160.0,2.98979847]
[1751320737676,5.26002572,107170.0,107160.0,2.98979847]
[1751320737882,4.94284892,107170.0,107160.0,2.98979847]
[1751320738170,0.1337,107210.0,107200.0,0.1865206]
[1751320738371,0.3837,107210.0,107200.0,1.27857394]
[1751320739073,0.3837,107210.0,107200.0,1.28414466]
[1751320739275,0.1337,107210.0,107200.0,1.64414466]
[1751320739475,0.1337,107210.0,107200.0,1.68674466]
[1751320739669,0.0881,107210.0,107200.0,1.72934466]
[1751320740284,0.0461,107210.0,107200.0,1.72934466]
[1751320740581,0.0511,107210.0,107200.0,1.72934466]
[1751320741880,0.0511,107210.0,107200.0,1.80376023]
[1751320742476,0.006,107210.0,107200.0,2.44027356]
[1751320742681,0.18623044,107240.0,107230.0,0.1864684]
[1751320742981,0.50982097,107240.0,107230.0,1.38488786]
[1751320743377,0.50982097,107240.0,107230.0,1.03488786]
[1751320743576,0.50982097,107240.0,107230.0,1.39488786]
[1751320743783,0.50982097,107240.0,107230.0,1.68452786]
[1751320743983,0.4248,107240.0,107230.0,1.68452786]
[1751320744187,0.0538,107240.0,107230.0,1.68552786]
[1751320744383,0.0538,107240.0,107230.0,1.72892786]
[1751320745282,0.0518,107240.0,107230.0,1.72892786]
[1751320746087,0.007,107240.0,107230.0,2.10198785]
[1751320746282,0.007,107240.0,107230.0,2.12986468]
[1751320747384,0.007,107240.0,107230.0,2.10198785]
[1751320747892,0.193451,107240.0,107230.0,0.36200612]
[1751320748089,1.02490834,107240.0,107230.0,0.00200612]
[1751320748391,0.2797055,107230.0,107210.0,0.58664689]
[1751320748592,0.05030612,107220.0,107210.0,1.53986383]
[1751320748782,0.09760612,107220.0,107210.0,1.53986383]
[1751320748982,0.09760612,107220.0,107210.0,1.511987]
[1751320750584,0.09760612,107220.0,107210.0,1.514987]
[1751320750785,0.28409192,107220.0,107210.0,0.62118826]
[1751320750981,0.28409192,107220.0,107210.0,1.20486826]
[1751320751180,0.73408926,107220.0,107210.0,0.01807306]
[1751320751384,0.91328926,107220.0,107210.0,0.01807306]
[1751320751588,1.33328926,107220.0,107210.0,0.01807306]
[1751320752089,0.1865032,107210.0,107200.0,0.00093279]
[1751320752388,0.1865206,107200.0,107190.0,0.2797905]
[1751320752583,0.544877,107200.0,107190.0,0.6131565]
[1751320752787,0.73145301,107200.0,107190.0,0.3131565]
[1751320752990,0.46799967,107200.0,107190.0,0.3131565]
[1751320754788,0.28142366,107200.0,107190.0,0.2331565]
[1751320755597,0.544877,107200.0,107190.0,0.2331565]
[1751320762299,0.544877,107200.0,107190.0,0.26103333]
[1751320764192,0.544877,107200.0,107190.0,0.29820244]
[1751320765297,0.592477,107200.0,107190.0,0.29820244]
[1751320765697,0.186538,107190.0,107180.0,0.27035491]
[1751320765890,0.282438,107190.0,107180.0,0.35035491]